{"text_format":"3","workbook":"xlsx","n_sheets":4,"sheets":["Инструкция","Информация об ОО","otchet","служ"],"not_rendered":{"images":3,"defined_names":28},"read":"whole","date_system":"1900"}

{"sheet":"Инструкция","index":0,"n_rows":78,"n_cols":6,"rows_kept":78,"merged":[[0,0,0,1],[1,0,1,1],[3,0,3,1],[16,2,16,3]]}
["ВПР 2020"]
["Заявка на участие во Всероссийских проверочных работах.\nВесна 2020"]
["версия 1.0","       Инструкция по работе с формой "]
["Данная форма предназначена для сбора заявок ОО, участвующих в ВПР весной 2020 г.\nНиже представлена пошаговая инструкция по заполнению формы, формированию и отправке отчета."]
["1. Технические особенности работы с файлом формы-отчёта"]
["  1.1.  ","Данная форма предназначена для работы в MS Excel 2000-2016 или OpenOffice 3"]
["  1.2.","Во избежание проблем с загрузкой формы отчёта необходимо обрабатывать (открывать, редактировать, сохранять) с помощью только одного программного продукта для каждой формы. Например:"]
[null,"Допустимо открыть форму отчета в OpenOffice, заполнить, сохранить, снова открыть в OpenOffice, сформировать отчет"]
[null,"Недопустимо открыть форму отчета в OpenOffice, заполнить, сохранить, открыть в Microsoft Excel, сформировать отчет"]
["  1.3.","При необходимости внести изменения в данные, вносите их в ранее заполненную форму, либо заполняйте форму заново целиком. Не сдавайте частично заполненную форму! Последняя сданная версия отчета заменяет предыдущие, поэтому при сдаче частично заполненной формы ранее предоставленные данные могут быть утеряны."]
["  1.4.","Размещайте все материалы по работе с Федеральной информационной системой оценки качества образования (ФИС ОКО) в одном месте и храните все файлы не менее двух лет."]
["  1.5.","После загрузки с сайта и сохранения файла с формой-отчётом  рекомендуется переименовать файл, добавив к названию номер или логин Вашей школы. Например: 2020form770179.xls"]
["2. Общие рекомендации по заполнению формы-отчёта"]
[" 2.1.","Для удобства использования рекомендуется распечатать данную инструкцию."]
[" 2.2.","Заполняйте поля, выделенные цветом (см. справа). Поля выделенные голубым обязательны для заполнения, зеленым - в зависимости от контекста.",{"$nulls":3},"знач1"]
[" 2.3.","Для редактирования частично заполненного поля пользуйтесь клавишей F2 (Fn+F2).",{"$nulls":3},"знач2"]
[" 2.4.","В ряде ячеек данные можно выбирать из списка. У таких ячеек справа появляется стрелка выпадающего списка (как и у ячейки справа). Нажмите на стрелку и, воспользовавшись полосой прокрутки, выберите нужное вам значение.",{"$nulls":3},"знач3"]
[" 2.5.","В процессе работы над файлом не реже чем раз в 5-7 минут сохраняйте его, нажимая Ctrl+S."]
[" 2.6.","Внимание! Категорически запрещается удалять ячейки, строки, столбцы и двигать ячейки мышью.\nДля очистки ячейки при работе в Microsoft Excel пользуйтесь клавишей DEL, при работе в OpenOffice Calc - клавишей BACKSPACE или DEL. Если при нажатии BACKSPACE или DEL (в OpenOffice Calc) появляется диалоговое окно, нужно установить параметры удаления содержимого, убрав галки со всех указанных по умолчанию параметров, и выбрать только удаление текста и чисел.\nДля копирования информации внутри файла пользуйтесь Ctrl+C(копирование) и Ctrl+V(вставка)."]
[" 2.7.","Копируя данные из других источников, обязательно используйте режим специальной вставки:\nпри работе в Microsoft Excel правая кнопка мыши (или меню - правка) - специальная вставка - текст;\nпри работе в OpenOffice Calc правая кнопка мыши (или меню - правка)  - вставить как - текст без форматирования.\nВ противном случае возможно повреждение логической схемы формы и, как следствие, искажение передаваемых данных."]
[" 2.8.","При работе Вам будет видна только часть данных. Для перемещения используйте стрелки на клавиатуре и полосы прокрутки на экране."]
[" 2.9.","Не рекомендуем отключать защиту данного файла, так как работа формы может быть нарушена, что приведет к неправильной передаче данных."]
["Заполнение отдельных разделов"]
["3. Описание разделов (листов формы)"]
[null,"Настоящая форма-отчёт предназначена для сбора данных об участниках всероссийских проверочных работ."]
["3.1.","Раздел (лист) \"Инструкция\" содержит пошаговую инструкцию по формированию и передаче информации."]
["3.2.","Раздел \"Информация об ОО\" содержит общие сведения о реализуемых программах обучения и заявки на участие в ВПР."]
["3.3.","Раздел \"otchet\" формируется автоматически на основе остальных разделов и не требует отдельного заполнения. Он предназначен для формирования итогового csv-отчета."]
["4. Раздел \"Информация об ОО\""]
[" 4.1.","Перейдите в раздел \"информация об ОО\" (ярлычки внизу экрана). Впишите логин ОО в отведенное для него поле. "]
[" 4.2.","Укажите реализуемые в ОО программы обучения. Отметьте \"да\" напротив тех ступеней обучения, которые есть в ОО. Если данной ступени в ОО нет, оставьте поле пустым."]
["4.3.","Укажите, по каким предметам и в каких классах ОО планирует принять участие в ВПР."]
["4.4. ","Участие в ВПР в 4, 5, 6 и 7 классах является обязательным. В случае, если данные классы в ОО отсутствуют или в ОО в данный период планируются каникулы, необходнимо выбрать \"нет\" в графе \"Участие\", в графе \"причина отказа от участия\" необходимо выбрать из выпадающего списка причину: \"данный класс отсутствует\" или \"каникулы в соответствии с годовым календарным учебным графиком (ГКУГ)\""]
["4.5.","Всероссийская проверочная работа по иностранному языку (английский, немецкий, французский) в 7 и 11 классах включает в себя письменную и устную части. Обе части работы выполняются в компьютерной форме в специально оборудованной для этого аудитории. Для выполнения работы на сайте будет размещено специальное ПО (программное обеспечение).  "]
["4.6.","Для участия в ВПР по иностранным языкам в заявке следует указать, сколько дней необходимо для проведения проверочных работ в ОО. Количество дней ОО определяет самостоятельно в период, утвержденный графиком проведения ВПР. Для этого необходимо учесть количество обучающихся, которые будут принимать участие в работе, количество аудиторий, оборудованных станциями для записи ответов (рекомендуется использовать не более 4-х станций на одну аудиторию проведения, за исключением лингафонных кабинетов (+ одна резервная на каждую аудиторию проведения с 4-мя станциями)). \nНа основании заявленного количества дней для ОО будет предоставлено соответствующее количество вариантов проверочных работ по иностранным языкам (2 варианта проверочных работ на каждый день проведения). При проведении проверочных работ в течение нескольких дней необходимо будет использовать новые варианты проверочных работ каждый день."]
["Подготовка файла отчёта для загрузки на сайте ФИС ОКО"]
["5. Создание файла отчета при работе в MS Excel 2000-2016"]
["5.1.","Перейдите на лист \"otchet\". \nУбедитесь, что сообщение на листе подтверждает готовность к формированию отчета. \nНе уходите с этого листа до окончания работы."]
["5.2.","Сохраните заполненную форму, нажав комбинацию Ctrl+S. "]
["5.3.","Выберите в пункте меню \"Файл\" - \"Сохранить как...\".\nВ MS Excel 2013 после этого нажмите кнопку \"Обзор\"."]
["5.4.","Выберите папку для размещения csv-отчёта. Рекомендуем хранить все файлы проекта в одном месте."]
["5.5.","Выберите тип файла \"CSV (разделители запятые) *.csv\"  Будьте внимательны, нужен именно этот формат! (СSV для ms-dos и СSV для macintosh не подходят). См. рисунок: "]
[]
["5.6.","Строчкой выше дайте файлу имя otchet, добавив дату и т.д. по необходимости. Используйте только латинские буквы. \nНапример: 20200220otchet."]
["5.7.","Нажмите \"сохранить\"."]
["5.8.","Согласитесь сохранить в предложенном формате только текущий лист - нажмите \"ОК\" в появившемся окне."]
["5.9.","Согласитесь сохранить всю книгу в формате csv, нажав \"ДА\" в очередном окне."]
["5.10.","Закройте форму, отказавшись сохранять изменения (это сделано в п. 5.2.)"]
["6. Загрузка файла отчета при работе в OpenOffice 3"]
["6.1.","Перейдите на лист \"otchet\". \nУбедитесь, что сообщение на листе подтверждает готовность к формированию отчета. \nНе уходите с этого листа до окончания работы."]
["6.2.","Сохраните заполненную форму, нажав комбинацию Ctrl+S. "]
["6.3.","Выберите в пункте меню \"Файл\" - \"Сохранить как...\""]
["6.4.","Выберите папку для размещения csv-отчёта. Рекомендуем хранить все файлы проекта в одном месте."]
["6.5.","В открывшемся окне выберите тип файла \"Текст CSV\" (в некоторых версиях OpenOffice Calc предварительно нужно нажать на стрелку перед \"Тип файла\"). См. рисунок: "]
[]
["6.6.","Строчкой выше дайте файлу имя otchet, добавив дату и т.д. по необходимости. Используйте только латинские буквы. \nНапример: 20200220otchet179."]
["6.7.","Нажмите \"Сохранить\". На появившемся предупреждении выберите \"Использовать текущий формат\"."]
["6.8.","В открывшемся окне выберите кодировку \"Win-1251\" и разделитель поля \";\" (точку с запятой). Остальные поля оставьте так, как есть. См. рисунок: "]
[]
["6.9.","Нажмите \"Ок\". На появившемся предупреждении о сохранении только активного листа нажмите \"Ок\"."]
["    7. Отправка подготовленного отчета"]
["7.1.","Авторизуйтесь в личном кабинете на сайте ФИС ОКО https://lk-fisoko.obrnadzor.gov.ru/, используя логин и пароль. "]
["7.2.","Выберите публикацию, соответствующую сдаваемому отчёту. Нажмите на кнопку \"Загрузить файл\"."]
["7.3.","Укажите в открывшемся окне расположение файла с csv - отчетом."]
["7.4.","Когда файл сдан, в системе появляется сообщение \"Данные приняты, вы можете посмотреть их по ссылке \". В вэб-интерфейсе отобразятся принятые данные. Убедитесь, что они соответствуют данным, которые вносились в форму отчета."]
["7.5.","Отправленные отчёты и их актуальность Вы можете отслеживать в публикации, в которой сдавали отчет. Кликните по ссылке \"посмотреть\"."]
["8. Решение проблем"]
["8.1.","Большинство проблем связано с одной из следующих ошибок:\n1) неверно указан логин;\n2) заполнение отчета не закончено, т.е. на листе \"otchet\" осталось сообщение \"Работа с отчетом не закончена\";\n3) сохранен не тот лист (не \"otchet\", см. п. 5.1 или 6.1);\n4) неверный формат сдаваемого в систему файла (см. п. 5.5 или 6.5)."]
["8.2.","Если красные надписи не исчезают или отчет не принимается системой, перечитайте еще раз инструкцию. Если Вы не нашли ошибку в своих действиях, напишите письмо на адрес helpfisoko@fioco.ru "]
[null,"тема: ВПР Проблемы otchet.csv <логин>"]
[null,"в тексте письма укажите:"]
[null,"Логин образовательной организации"]
[null,"Ваши ФИО"]
[null,"Подробное описание проблемы. По возможности укажите пункт инструкции, выполнение которого вызвало затруднения."]
[null,"Обязательно прикрепите к письму проблемные файлы: заполненную форму, csv-отчёт. При необходимости прикрепите скриншот (снимок экрана)*. "]
["8.3.","Несоблюдение описанных выше требований существенно увеличит время обработки Вашего запроса."]
["8.4.","Если Вы не получили ответа в течение рабочего дня, отправьте повторное письмо."]
[null,"*Для создания скриншота нажмите Ctrl+PrtSc, после чего сохраните получившийся снимок, вставив в окно любого графического редактора или в MS Word документ (Shift+Ins)."]

{"sheet":"Информация об ОО","index":1,"n_rows":56,"n_cols":24,"rows_kept":56,"merged":[[0,2,0,6],[1,2,1,6],[3,2,3,5],[5,2,5,5],[6,2,6,4],[7,2,10,2],[7,3,7,4],[8,3,8,4],[9,3,9,4],[10,3,10,4],[11,2,11,4],[12,2,12,4],[14,2,14,6],[16,2,18,2],[19,2,22,2],[23,2,28,2],[29,2,38,2],[39,2,46,2],[48,2,55,2]]}
[{"$f":"PRODUCT(A7:A8)*otchet!K1*A13*PRODUCT(A17:A56)","v":1}]
[null,null,{"$f":"Инструкция!A2","v":"Заявка на участие во Всероссийских проверочных работах.\nВесна 2020"}]
[]
[null,null,{"$f":"IF(otchet!K1=0,\"Структура документа нарушена! Вы переместили ячейку. Нажмите Ctrl+Z.\",IF(A1=1,\"Данные приняты. Перейдите на лист 'otchet'\",\"Продолжите заполнение отчета\"))","v":"Данные приняты. Перейдите на лист 'otchet'"}]
[]
[null,null,"Информация об ОО",{"$nulls":10},"login+",{"$f":"IF(LEN(F7)=0,0,IF(AND(OR(MID(F7,1,3)=\"sch\",MID(F7,1,3)=\"spo\",MID(F7,1,3)=\"ksh\",MID(F7,1,3)=\"kch\"),VALUE(MID(F7,4,3))>0,LEN(F7)=9),1,0))","v":1},{"$nulls":6},"региональное",null,"только письменно"]
[{"$f":"IF(ISERR(O6),0,O6)","v":1},null,"Логин ОО:",null,null,"sch163072",{"$nulls":7},"form+",{"$nulls":7},"муниципальное",null,"письменно и устно"]
[{"$f":"IF(F8&F9&F10&F11=\"\",0,1)","v":1},null,"Реализуемые в ОО программы:\n(отметьте все реализуемые программы)","начального общего образования",{"$nulls":17},"другое"]
[{"$nulls":3},"основного общего образования",null,"да"]
[{"$nulls":3},"среднего общего образования",null,"да"]
[{"$nulls":3},"среднего профессионального образования"]
[{"$f":"IF(F9=\"да\",IF(F12<>\"\",1,0),1)","v":0},null,"Преподается ли в ОО предмет \"Мировая художественая культура\"?"]
[{"$f":"IF(F13=\"\",0,1)","v":1},null,"ОО находится:",null,null,"в сельской местности"]
[]
[null,null,"Участие в ВПР"]
[null,null,"Класс","Предмет","Дата; день недели","Участие","Причина отказа от участия"]
[{"$f":"IF(F8=\"да\",IF(K17*L17*M17*N17*O17>0,1,0),1)","v":1},null,"4 класс\n(участие ОО, реализующих программы начального общего образования, обязательно)","Русский язык\n (часть 1 и часть 2)","30 марта-3 апреля, 6-10 апреля ",{"$nulls":3},{"$f":"IF(N17=0,\"Вы указали участие в ВПР классов, наличие которых не предусмотрено указанными программами.\",\"\")","v":""},null,{"$f":"IF(F17=\"да\",1,IF(F17=\"нет\",2,0))","v":0},{"$f":"IF(AND(G17=\"\",F$8=\"да\",K17=2),0,1)*IF(AND(G17<>\"\",OR(F$8=\"\",K17<>2)),0,1)","v":1},{"$f":"IF(F$8=\"да\",IF(AND(K17=1,G17=\"\"),1,IF(AND(K17=2,G17<>\"\"),1,0)),IF(AND(K17>0,G17=\"\"),1,0))","v":0},{"$f":"IF(AND(K17=1,F$8=\"\"),0,1)","v":1},{"$f":"IF(AND(K17=1,N17=0),0,1)","v":1}]
[{"$f":"IF(F8=\"да\",IF(K18*L18*M18*N18*O18>0,1,0),1)","v":1},null,null,"Математика","13-17 апреля, 20-24 апреля",{"$nulls":3},"",null,0,{"$f":"IF(AND(G18=\"\",F$8=\"да\",K18=2),0,1)*IF(AND(G18<>\"\",OR(F$8=\"\",K18<>2)),0,1)","v":1},{"$f":"IF(F$8=\"да\",IF(AND(K18=1,G18=\"\"),1,IF(AND(K18=2,G18<>\"\"),1,0)),IF(AND(K18>0,G18=\"\"),1,0))","v":0},{"$f":"IF(AND(K18=1,F$8=\"\"),0,1)","v":1},1]
[{"$f":"IF(F8=\"да\",IF(K19*L19*M19*N19*O19>0,1,0),1)","v":1},null,null,"Окружающий мир","13-17 апреля, 20-24 апреля",{"$nulls":3},"",null,0,{"$f":"IF(AND(G19=\"\",F$8=\"да\",K19=2),0,1)*IF(AND(G19<>\"\",OR(F$8=\"\",K19<>2)),0,1)","v":1},{"$f":"IF(F$8=\"да\",IF(AND(K19=1,G19=\"\"),1,IF(AND(K19=2,G19<>\"\"),1,0)),IF(AND(K19>0,G19=\"\"),1,0))","v":0},{"$f":"IF(AND(K19=1,F$8=\"\"),0,1)","v":1},1]
[{"$f":"IF(F9=\"да\",IF(K20*L20*M20*N20*O20>0,1,0),1)","v":1},null,"5 класс\n(участие ОО, реализующих программы основного общего образования, обязательно)","История","30 марта-3 апреля, 6-10 апреля ","да",null,null,"",null,1,{"$f":"IF(AND(G20=\"\",F$9=\"да\",K20=2),0,1)*IF(AND(G20<>\"\",OR(F$9=\"\",K20<>2)),0,1)","v":1},{"$f":"IF(F$9=\"да\",IF(AND(K20=1,G20=\"\"),1,IF(AND(K20=2,G20<>\"\"),1,0)),IF(AND(K20>0,G20=\"\"),1,0))","v":1},{"$f":"IF(AND(K20=1,F$9=\"\"),0,1)","v":1},1]
[{"$f":"IF(F9=\"да\",IF(K21*L21*M21*N21*O21>0,1,0),1)","v":1},null,null,"Биология","30 марта-3 апреля, 6-10 апреля ","да",null,null,"",null,1,1,1,1,1]
[{"$f":"IF(F9=\"да\",IF(K22*L22*M22*N22*O22>0,1,0),1)","v":1},null,null,"Математика","13-17 апреля, 20-24 апреля","да",null,null,"",null,1,1,1,1,1]
[{"$f":"IF(F9=\"да\",IF(K23*L23*M23*N23*O23>0,1,0),1)","v":1},null,null,"Русский язык","13-17 апреля, 20-24 апреля","да",null,null,"",null,1,1,1,1,1]
[{"$f":"IF(F9=\"да\",IF(K24*L24*M24*N24*O24>0,1,0),1)","v":1},null,"6 класс\n(участие ОО, реализующих программы основного общего образования, обязательно)","География","30 марта-3 апреля, 6-10 апреля ","да",null,null,"",null,1,1,1,1,1]
[{"$f":"IF(F9=\"да\",IF(K25*L25*M25*N25*O25>0,1,0),1)","v":1},null,null,"История","30 марта-3 апреля, 6-10 апреля ","да",null,null,"",null,1,1,1,1,1]
[{"$f":"IF(F9=\"да\",IF(K26*L26*M26*N26*O26>0,1,0),1)","v":1},null,null,"Биология","30 марта-3 апреля, 6-10 апреля ","да",null,null,"",null,1,1,1,1,1]
[{"$f":"IF(F9=\"да\",IF(K27*L27*M27*N27*O27>0,1,0),1)","v":1},null,null,"Обществознание","13-17 апреля, 20-24 апреля","да",null,null,"",null,1,1,1,1,1]
[{"$f":"IF(F9=\"да\",IF(K28*L28*M28*N28*O28>0,1,0),1)","v":1},null,null,"Русский язык","13-17 апреля, 20-24 апреля","да",null,null,"",null,1,1,1,1,1]
[{"$f":"IF(F9=\"да\",IF(K29*L29*M29*N29*O29>0,1,0),1)","v":1},null,null,"Математика","13-17 апреля, 20-24 апреля","да",null,"количество необходимых дней","",null,1,1,1,1,1]
[{"$f":"IF(F9=\"да\",IF(K30*L30*M30*N30*O30>0,1,0),1)","v":1},null,"7 класс (участие ОО, реализующих программы основного общего образования, обязательно)","Английский язык","30 марта-3 апреля, 6-10 апреля ","да",null,5,"",null,1,{"$f":"IF(AND(G30=\"\",F$9=\"да\",K30=2),0,1)*IF(AND(G30<>\"\",OR(F$9=\"\",K30<>2)),0,1)*IF(AND(F30=\"да\",H30=0),0,1)*IF(AND(G30>0,H30>0),0,1)","v":1},{"$f":"IF(F$9=\"да\",IF(AND(K30=1,G30=\"\"),1,IF(AND(K30=2,G30<>\"\"),1,0)),IF(AND(K30>0,H30=\"\"),1,0))","v":1},1,1]
[{"$f":"IF(F9=\"да\",IF(K31*L31*M31*N31*O31>0,1,0),1)","v":1},null,null,"Немецкий язык","30 марта-3 апреля, 6-10 апреля ","нет","не изучается",null,"",null,{"$f":"IF(F31=\"да\",1,IF(F31=\"нет\",2,0))","v":2},{"$f":"IF(AND(G31=\"\",F$9=\"да\",K31=2),0,1)*IF(AND(G31<>\"\",OR(F$9=\"\",K31<>2)),0,1)*IF(AND(F31=\"да\",H31=0),0,1)*IF(AND(G31>0,H31>0),0,1)","v":1},{"$f":"IF(F$9=\"да\",IF(AND(K31=1,G31=\"\"),1,IF(AND(K31=2,G31<>\"\"),1,0)),IF(AND(K31>0,H31=\"\"),1,0))","v":1},{"$f":"IF(AND(K31=1,F$9=\"\"),0,1)","v":1},{"$f":"IF(AND(K31=1,N31=0),0,1)","v":1}]
[{"$f":"IF(F9=\"да\",IF(K32*L32*M32*N32*O32>0,1,0),1)","v":1},null,null,"Французский язык","30 марта-3 апреля, 6-10 апреля ","нет","не изучается",null,"",null,2,1,1,1,1]
[{"$f":"IF(F9=\"да\",IF(K33*L33*M33*N33*O33>0,1,0),1)","v":1},null,null,"Обществознание","30 марта-3 апреля, 6-10 апреля ","да",null,null,"",null,1,{"$f":"IF(AND(G33=\"\",F$9=\"да\",K33=2),0,1)*IF(AND(G33<>\"\",OR(F$9=\"\",K33<>2)),0,1)","v":1},{"$f":"IF(F$9=\"да\",IF(AND(K33=1,G33=\"\"),1,IF(AND(K33=2,G33<>\"\"),1,0)),IF(AND(K33>0,G33=\"\"),1,0))","v":1},1,1]
[{"$f":"IF(F9=\"да\",IF(K34*L34*M34*N34*O34>0,1,0),1)","v":1},null,null,"Русский язык","30 марта-3 апреля, 6-10 апреля ","да",null,null,"",null,{"$f":"IF(F34=\"да\",1,IF(F34=\"нет\",2,0))","v":1},{"$f":"IF(AND(G34=\"\",F$9=\"да\",K34=2),0,1)*IF(AND(G34<>\"\",OR(F$9=\"\",K34<>2)),0,1)","v":1},{"$f":"IF(F$9=\"да\",IF(AND(K34=1,G34=\"\"),1,IF(AND(K34=2,G34<>\"\"),1,0)),IF(AND(K34>0,G34=\"\"),1,0))","v":1},{"$f":"IF(AND(K34=1,F$9=\"\"),0,1)","v":1},{"$f":"IF(AND(K34=1,N34=0),0,1)","v":1}]
[{"$f":"IF(F9=\"да\",IF(K35*L35*M35*N35*O35>0,1,0),1)","v":1},null,null,"Биология","30 марта-3 апреля, 6-10 апреля ","да",null,null,"",null,1,1,1,1,1]
[{"$f":"IF(F9=\"да\",IF(K36*L36*M36*N36*O36>0,1,0),1)","v":1},null,null,"География","13-17 апреля, 20-24 апреля","да",null,null,"",null,1,1,1,1,1]
[{"$f":"IF(F9=\"да\",IF(K37*L37*M37*N37*O37>0,1,0),1)","v":1},null,null,"Математика","13-17 апреля, 20-24 апреля","да",null,null,"",null,1,1,1,1,1]
[{"$f":"IF(F9=\"да\",IF(K38*L38*M38*N38*O38>0,1,0),1)","v":1},null,null,"Физика","13-17 апреля, 20-24 апреля","да",null,null,"",null,1,1,1,1,1]
[{"$f":"IF(F9=\"да\",IF(K39*L39*M39*N39*O39>0,1,0),1)","v":1},null,null,"История","13-17 апреля, 20-24 апреля","да",null,null,"",null,1,1,1,1,1]
[{"$f":"IF(F9=\"да\",IF(K40*N40*O40>0,1,0),1)","v":1},null,"8 класс","Обществознание","31 марта, вт","нет",null,null,"",null,{"$f":"IF(F40=\"да\",1,IF(F40=\"нет\",2,0))","v":2},null,null,{"$f":"IF(AND(K40=1,F$9=\"\"),0,1)","v":1},{"$f":"IF(AND(K40=1,N40=0),0,1)","v":1}]
[{"$f":"IF(F9=\"да\",IF(K41*N41*O41>0,1,0),1)","v":1},null,null,"Биология","2 апреля, чт","нет",null,null,"",null,2,null,null,1,1]
[{"$f":"IF(F9=\"да\",IF(K42*N42*O42>0,1,0),1)","v":1},null,null,"Физика","7 апреля, вт","нет",null,null,{"$f":"IF(N42=0,\"Вы указали участие в ВПР классов, наличие которых не предусмотрено указанными программами.\",\"\")","v":""},null,2,null,null,1,1]
[{"$f":"IF(F9=\"да\",IF(K43*N43*O43>0,1,0),1)","v":1},null,null,"География","9 апреля, чт","нет",null,null,"",null,{"$f":"IF(F43=\"да\",1,IF(F43=\"нет\",2,0))","v":2},null,null,{"$f":"IF(AND(K43=1,F$9=\"\"),0,1)","v":1},{"$f":"IF(AND(K43=1,N43=0),0,1)","v":1}]
[{"$f":"IF(F9=\"да\",IF(K44*N44*O44>0,1,0),1)","v":1},null,null,"Математика","14 апреля, вт","нет",null,null,"",null,2,null,null,1,1]
[{"$f":"IF(F9=\"да\",IF(K45*N45*O45>0,1,0),1)","v":1},null,null,"Русский язык","16 апреля, чт","нет",null,null,"",null,{"$f":"IF(F45=\"да\",1,IF(F45=\"нет\",2,0))","v":2},null,null,{"$f":"IF(AND(K45=1,F$9=\"\"),0,1)","v":1},{"$f":"IF(AND(K45=1,N45=0),0,1)","v":1}]
[{"$f":"IF(F9=\"да\",IF(K46*N46*O46>0,1,0),1)","v":1},null,null,"История","21 апреля, вт","нет",null,null,"",null,2,null,null,1,1]
[{"$f":"IF(F9=\"да\",IF(K47*N47*O47>0,1,0),1)","v":1},null,null,"Химия","23 апреля, чт","нет",null,null,"",null,2,null,null,1,1]
[{"$f":"IF(F10=\"да\",IF(K48*N48*O48>0,1,0),1)","v":1},null,"10 класс","География","2-6 марта","нет","количество необходимых дней",null,{"$f":"IF(N48=0,\"Вы указали участие в ВПР классов, наличие которых не предусмотрено указанными программами.\",\"\")","v":""},null,{"$f":"IF(F48=\"да\",1,IF(F48=\"нет\",2,0))","v":2},null,null,{"$f":"IF(AND(K48=1,F$9=\"\"),0,1)","v":1},{"$f":"IF(AND(K48=1,N48=0),0,1)","v":1}]
[{"$f":"IF(OR(F10=\"да\",F11=\"да\"),IF(K49*N49*O49>0,1,0),1)","v":1},null,"11 класс","Английский язык","2-6 марта","нет",null,null,{"$f":"IF(N49=0,\"Вы указали участие в ВПР классов, наличие которых не предусмотрено указанными программами.\",\"\")","v":""},null,{"$f":"IF(F49=\"да\",1,IF(F49=\"нет\",2,0))","v":2},{"$f":"IF(AND(G49=\"\",F$10=\"да\",K49=1),0,1)*IF(AND(G49<>\"\",OR(F$10=\"\",K49<>1)),0,1)","v":1},{"$f":"IF(F$10=\"да\",IF(AND(K49=2,G49=\"\"),1,IF(AND(K49=1,G49<>\"\"),1,0)),IF(AND(K49>0,F49=\"\"),0,1))","v":1},{"$f":"IF(AND(K49=1,F$10=\"\"),0,1)","v":1},{"$f":"IF(AND(K49=1,N49=0),0,1)","v":1}]
[{"$f":"IF(OR(F10=\"да\",F11=\"да\"),IF(K50*N50*O50>0,1,0),1)","v":1},null,null,"Немецкий язык","2-6 марта","нет",null,null,{"$f":"IF(N50=0,\"Вы указали участие в ВПР классов, наличие которых не предусмотрено указанными программами.\",\"\")","v":""},null,{"$f":"IF(F50=\"да\",1,IF(F50=\"нет\",2,0))","v":2},{"$f":"IF(AND(G50=\"\",F$10=\"да\",K50=1),0,1)*IF(AND(G50<>\"\",OR(F$10=\"\",K50<>1)),0,1)","v":1},{"$f":"IF(F$10=\"да\",IF(AND(K50=2,G50=\"\"),1,IF(AND(K50=1,G50<>\"\"),1,0)),IF(AND(K50>0,F50=\"\"),0,1))","v":1},{"$f":"IF(AND(K50=1,F$10=\"\"),0,1)","v":1},1]
[{"$f":"IF(OR(F10=\"да\",F11=\"да\"),IF(K51*N51*O51>0,1,0),1)","v":1},null,null,"Французский язык","2-6 марта","нет",null,null,"",null,2,1,1,{"$f":"IF(AND(K51=1,F$10=\"\"),0,1)","v":1},1]
[{"$f":"IF(OR(F10=\"да\",F11=\"да\"),IF(K52*N52*O52>0,1,0),1)","v":1},null,null,"География","2-6 марта","нет",null,null,"",null,{"$f":"IF(F52=\"да\",1,IF(F52=\"нет\",2,0))","v":2},null,null,{"$f":"IF(AND(K52=1,F$10&F$11=\"\"),0,1)","v":1},1]
[{"$f":"IF(OR(F10=\"да\",F11=\"да\"),IF(K53*N53*O53>0,1,0),1)","v":1},null,null,"История","10-13 марта","нет",null,null,"",null,{"$f":"IF(F53=\"да\",1,IF(F53=\"нет\",2,0))","v":2},null,null,1,1]
[{"$f":"IF(OR(F10=\"да\",F11=\"да\"),IF(K54*N54*O54>0,1,0),1)","v":1},null,null,"Химия","10-13 марта","нет",null,null,"",null,{"$f":"IF(F54=\"да\",1,IF(F54=\"нет\",2,0))","v":2},null,null,1,1]
[{"$f":"IF(OR(F10=\"да\",F11=\"да\"),IF(K55*N55*O55>0,1,0),1)","v":1},null,null,"Физика","16-20 марта","нет",null,null,"",null,2,null,null,1,1]
[{"$f":"IF(OR(F10=\"да\",F11=\"да\"),IF(K56*N56*O56>0,1,0),1)","v":1},null,null,"Биология","16-20 марта","нет",null,null,"",null,2,null,null,1,1]

{"sheet":"otchet","index":2,"n_rows":5,"n_cols":255,"rows_kept":5}
[{"$f":"IF('Информация об ОО'!A1=1,20200222,111111)","v":20200222},{"$f":"LOWER('Информация об ОО'!F7)","v":"sch163072"},{"$nulls":7},{"$f":"PRODUCT(J58:K157)","v":0},{"$f":"IF(COUNTIF(L1:CH1,\"#ССЫЛКА!\")+COUNTIF(B1:G1,\"#ССЫЛКА!\")>0,0,1)","v":1},{"$f":"CLEAN('Информация об ОО'!F8)","v":""},{"$f":"CLEAN('Информация об ОО'!F9)","v":"да"},{"$f":"CLEAN('Информация об ОО'!F10)","v":"да"},{"$f":"CLEAN('Информация об ОО'!F11)","v":""},null,{"$f":"'Информация об ОО'!F13","v":"в сельской местности"},{"$f":"INDIRECT(\"'Информация об ОО'!\"&R5)","v":0},{"$f":"INDIRECT(\"'Информация об ОО'!\"&S5)","v":0},{"$f":"INDIRECT(\"'Информация об ОО'!\"&T5)","v":0},"да","да","да","да","да","да","да","да","да","да","да","нет","нет","да","да","да","да","да","да","да","нет","нет","нет","нет","нет","нет","нет","нет","нет","нет","нет","нет","нет","нет","нет","нет","нет",{"$f":"CLEAN(OFFSET(INDIRECT(\"'Информация об ОО'!\"&R5),,1))","v":""},{"$f":"CLEAN(OFFSET(INDIRECT(\"'Информация об ОО'!\"&S5),,1))","v":""},"","","","","","","","","","","","","не изучается","не изучается","","","","","","","",{"$f":"CLEAN(OFFSET(INDIRECT(\"'Информация об ОО'!\"&CC5),,2))","v":"5"},{"$f":"CLEAN(OFFSET(INDIRECT(\"'Информация об ОО'!\"&CD5),,2))","v":""},"",{"$f":"CLEAN(OFFSET(INDIRECT(\"'Информация об ОО'!\"&CF5),,1))","v":""},{"$f":"CLEAN(OFFSET(INDIRECT(\"'Информация об ОО'!\"&CG5),,1))","v":""},"",{"$nulls":101},{"$f":"NOW()","v":"2020-01-29T07:38:05.010"},{"$nulls":66},"абвгдеёжзийклмнопрстуфхцчшщъыьэюяАБВГДЕЁЖЗИЙКЛМНОПРСТУФХЦЧШЩЪЫЬЭЮЯ"]
[null,{"$f":"IF('Информация об ОО'!A1=1,1,0)","v":1},{"$nulls":15},{"$f":"OFFSET(INDIRECT(\"'Информация об ОО'!\"&R5),,-2)","v":"Русский язык\n (часть 1 и часть 2)"},{"$f":"OFFSET(INDIRECT(\"'Информация об ОО'!\"&S5),,-2)","v":"Математика"},{"$f":"OFFSET(INDIRECT(\"'Информация об ОО'!\"&T5),,-2)","v":"Окружающий мир"},"История","Биология","Математика","Русский язык","География","История","Биология","Обществознание","Русский язык","Математика","Английский язык","Немецкий язык","Французский язык","Обществознание","Русский язык","Биология","География","Математика","Физика","История","Обществознание","Биология","Физика","География","Математика","Русский язык","История","Химия","География","Английский язык","Немецкий язык","Французский язык","География","История","Химия","Физика","Биология",{"$f":"\"отказ \"&OFFSET(INDIRECT(\"'Информация об ОО'!\"&BF5),,-2)","v":"отказ Русский язык\n (часть 1 и часть 2)"},{"$f":"\"отказ \"&OFFSET(INDIRECT(\"'Информация об ОО'!\"&BG5),,-2)","v":"отказ Математика"},"отказ Окружающий мир","отказ История","отказ Биология","отказ Математика","отказ Русский язык","отказ География","отказ История","отказ Биология","отказ Обществознание","отказ Русский язык","отказ Математика","отказ Английский язык","отказ Немецкий язык","отказ Французский язык","отказ Обществознание","отказ Русский язык","отказ Биология","отказ География","отказ Математика","отказ Физика","отказ История",{"$f":"\"количество дней \"&OFFSET(INDIRECT(\"'Информация об ОО'!\"&CC5),,-2)","v":"количество дней Английский язык"},{"$f":"\"количество дней \"&OFFSET(INDIRECT(\"'Информация об ОО'!\"&CD5),,-2)","v":"количество дней Немецкий язык"},"количество дней Французский язык",{"$f":"\"количество дней \"&OFFSET(INDIRECT(\"'Информация об ОО'!\"&CF5),,-2)","v":"количество дней Английский язык"},{"$f":"\"количество дней \"&OFFSET(INDIRECT(\"'Информация об ОО'!\"&CG5),,-2)","v":"количество дней Немецкий язык"},"количество дней Французский язык"]
[null,{"$f":"IF(B2>0,\"Отчет готов к сохранению и отправке. Выполните пункт 5 или 6 инструкции.\",\"Работа с отчетом не закончена.\")","v":"Отчет готов к сохранению и отправке. Выполните пункт 5 или 6 инструкции."},{"$nulls":15},{"$f":"OFFSET(INDIRECT(\"'Информация об ОО'!\"&R5),,-3)","v":"4 класс\n(участие ОО, реализующих программы начального общего образования, обязательно)"},{"$f":"OFFSET(INDIRECT(\"'Информация об ОО'!\"&S5),,-3)","v":0},0,"5 класс\n(участие ОО, реализующих программы основного общего образования, обязательно)",0,0,0,"6 класс\n(участие ОО, реализующих программы основного общего образования, обязательно)",0,0,0,0,0,"7 класс (участие ОО, реализующих программы основного общего образования, обязательно)",0,0,0,0,0,0,0,0,0,"8 класс",0,0,0,0,0,0,0,"10 класс","11 класс",0,0,0,0,0,0,0]
[]
[{"$nulls":17},"F17","F18","F19","F20","F21","F22","F23","F24","F25","F26","F27","F28","F29","F30","F31","F32","F33","F34","F35","F36","F37","F38","F39","F40","F41","F42","F43","F44","F45","F46","F47","F48","F49","F50","F51","F52","F53","F54","F55","F56","F17","F18","F19","F20","F21","F22","F23","F24","F25","F26","F27","F28","F29","F30","F31","F32","F33","F34","F35","F36","F37","F38","F39","F30","F31","F32","F49","F50","F51"]

{"sheet":"служ","index":3,"n_rows":41,"n_cols":17,"rows_kept":41,"hidden":true}
[null,null,"parall",null,"yn_",null,{"$f":"(1000000-100000)/G2/2","v":467.2897196261682},{"$nulls":7},"gender","ocen","buka"]
["Учитель 1",null,2,null,"да",null,963,null,null,"5 класс",1,{"$nulls":3},"М","нет оценки","А"]
["Учитель 2",null,5,null,"нет",{"$nulls":4},"8 класс",2,{"$nulls":3},"Ж",5,"Б"]
["Учитель 3",{"$nulls":14},4,"В"]
["Учитель 4",null,"kval",{"$nulls":12},3,"Г"]
["Учитель 5",null,"Высшая",{"$nulls":12},2,"Д"]
["Учитель 6",null,"Первая",{"$nulls":13},"Е"]
["Учитель 7",null,"Аттестован(а) на соответствие должности",{"$nulls":13},"Ё"]
["Учитель 8",null,"Не астестован(а)",{"$nulls":13},"Ж"]
["Учитель 9",null,"Молодой специалист",{"$nulls":13},"З"]
["Учитель 10",{"$nulls":15},"И"]
["Учитель 11",{"$nulls":15},"Й"]
["Учитель 12",{"$nulls":15},"К"]
["Учитель 13",{"$nulls":15},"Л"]
["Учитель 14",{"$nulls":15},"М"]
["Учитель 15",{"$nulls":15},"Н"]
["Учитель 16",{"$nulls":15},"О"]
["Учитель 17",{"$nulls":15},"П"]
["Учитель 18",{"$nulls":15},"Р"]
["Учитель 19",{"$nulls":15},"С"]
["Учитель 20",{"$nulls":15},"Т"]
["Учитель 21",{"$nulls":15},"У"]
["Учитель 22",{"$nulls":15},"Ф"]
["Учитель 23",{"$nulls":15},"Х"]
["Учитель 24",{"$nulls":15},"Ц"]
["Учитель 25",{"$nulls":15},"Ч"]
[{"$nulls":16},"Ш"]
[{"$nulls":16},"Щ"]
[{"$nulls":16},"Э"]
[{"$nulls":16},"Ю"]
[{"$nulls":16},"Я"]
[{"$nulls":16},"Z"]
[{"$nulls":16},1]
[{"$nulls":16},2]
[{"$nulls":16},3]
[{"$nulls":16},4]
[{"$nulls":16},5]
[{"$nulls":16},6]
[{"$nulls":16},7]
[{"$nulls":16},8]
[{"$nulls":16},9]